fUSD/lending_fUSD_20250120
["ID","MTS","AMOUNT","RATE_DAILY","PERIOD"]
[349756797,1737414645501,-500.0,0.00019726,2]
[349756798,1737414645510,-500.0,0.00019726,2]
[349756799,1737414645522,-500.0,0.00019726,2]
[349756800,1737414645531,-500.0,0.00019726,2]
[349756801,1737414645541,-500.0,0.00019726,2]
[349756802,1737414645550,-500.0,0.00019726,2]
[349756803,1737414645559,-500.0,0.00019726,2]
[349756804,1737414645569,-565.61,0.00019726,2]
[349756805,1737414645579,-500.0,0.00019726,2]
[349756806,1737414645588,-500.0,0.00019726,2]
[349756807,1737414645598,-500.0,0.00019726,2]
[349756808,1737414645607,-500.0,0.00019726,2]
[349756809,1737414645617,-255.789155,0.00019726,2]
[349756810,1737414645626,-500.0,0.00019726,2]
[349756811,1737414645636,-500.0,0.00019726,2]
[349756812,1737414645645,-500.0,0.00019726,2]
[349756813,1737414645655,-574.2,0.00019726,2]
[349756814,1737414645664,-500.0,0.00019726,2]
[349756815,1737414645673,-500.0,0.00019726,2]
[349756816,1737414645683,-334.392464,0.00019726,2]
[349756817,1737414645692,-500.0,0.00019726,2]
[349756818,1737414645839,-500.0,0.00019726,2]
[349756819,1737414645848,-500.0,0.00019726,2]
[349756820,1737414645858,-500.0,0.00019726,2]
[349756821,1737414645868,-500.0,0.00019726,2]
[349756823,1737414645877,-500.0,0.00019726,2]
[349756825,1737414645886,-500.0,0.00019726,2]
[349756827,1737414645895,-500.0,0.00019726,2]
[349756829,1737414645904,-500.0,0.00019726,2]
[349756831,1737414645914,-500.0,0.00019726,2]
[349756833,1737414645924,-500.0,0.00019726,2]
[349756835,1737414645933,-500.0,0.00019726,2]
[349756837,1737414645942,-500.0,0.00019726,2]
[349756839,1737414645952,-500.0,0.00019726,2]
[349756841,1737414645961,-500.0,0.00019726,2]
[349756843,1737414645970,-500.0,0.00019726,2]
[349756845,1737414645979,-500.0,0.00019726,2]
[349756847,1737414645989,-500.0,0.00019726,2]
[349756849,1737414645998,-500.0,0.00019726,2]
[349756851,1737414646007,-500.0,0.00019726,2]
[349756852,1737414646016,-500.0,0.00019726,2]
[349756854,1737414646026,-500.0,0.00019726,2]
[349756856,1737414646035,-500.0,0.00019726,2]
[349756859,1737414646044,-500.0,0.00019726,2]
[349756861,1737414646053,-500.0,0.00019726,2]
[349756862,1737414646062,-500.0,0.00019726,2]
[349756864,1737414646071,-500.0,0.00019726,2]
[349756866,1737414646080,-500.0,0.00019726,2]
[349756868,1737414646090,-500.0,0.00019726,2]
[349756870,1737414646099,-500.0,0.00019726,2]
[349756872,1737414646108,-500.0,0.00019726,2]
[349756874,1737414646117,-500.0,0.00019726,2]
[349756876,1737414646127,-500.0,0.00019726,2]
[349756879,1737414646138,-500.0,0.00019726,2]
[349756880,1737414646147,-500.0,0.00019726,2]
[349756882,1737414646156,-500.0,0.00019726,2]
[349756884,1737414646165,-500.0,0.00019726,2]
[349756886,1737414646174,-500.0,0.00019726,2]
[349756888,1737414646183,-500.0,0.00019726,2]
[349756890,1737414646192,-500.0,0.00019726,2]
[349756892,1737414646201,-500.0,0.00019726,2]
[349756894,1737414646210,-500.96,0.00019726,2]
[349756896,1737414646219,-500.0,0.00019726,2]
[349756898,1737414646227,-500.0,0.00019726,2]
[349756900,1737414646236,-500.0,0.00019726,2]
[349756902,1737414646245,-538.13460553,0.00019726,2]
[349756904,1737414646254,-500.0,0.00019726,2]
[349756906,1737414646263,-500.0,0.00019726,2]
[349756908,1737414646272,-500.0,0.00019726,2]
[349756910,1737414646281,-500.0,0.00019726,2]
[349756912,1737414646289,-500.0,0.00019726,2]
[349756914,1737414646298,-500.0,0.00019726,2]
[349756916,1737414646307,-500.0,0.00019726,2]
[349756918,1737414646316,-490.0,0.00019726,2]
[349756920,1737414646325,-500.0,0.00019726,2]
[349756921,1737414646335,-500.0,0.00019726,2]
[349756923,1737414646344,-500.0,0.00019726,2]
[349756925,1737414646353,-500.0,0.00019726,2]
[349756927,1737414646362,-500.0,0.00019726,2]
[349756929,1737414646371,-500.0,0.00019726,2]
[349756931,1737414646380,-500.0,0.00019726,2]
[349756933,1737414646389,-500.0,0.00019726,2]
[349756935,1737414646397,-500.0,0.00019726,2]
[349756937,1737414646406,-519.52,0.00019726,2]
[349756939,1737414646416,-500.0,0.00019726,2]
[349756941,1737414646426,-500.0,0.00019726,2]
[349756943,1737414646435,-500.0,0.00019726,2]
[349756945,1737414646444,-500.0,0.00019726,2]
[349756947,1737414646454,-500.0,0.00019726,2]
[349756949,1737414646464,-500.0,0.00019726,2]
[349756951,1737414646474,-500.0,0.00019726,2]
[349756953,1737414646483,-500.0,0.00019726,2]
[349756955,1737414646492,-500.0,0.00019726,2]
[349756957,1737414646501,-500.0,0.00019726,2]
[349756959,1737414646511,-500.0,0.00019726,2]
[349756961,1737414646524,-500.0,0.00019726,2]
[349756963,1737414646534,-1536.87,0.00019726,2]
[349756965,1737414646543,-500.0,0.00019726,2]
[349756967,1737414646552,-500.0,0.00019726,2]
[349756969,1737414646561,-500.0,0.00019726,2]
[349756971,1737414646571,-500.0,0.00019726,2]
[349756973,1737414646581,-500.0,0.00019726,2]
[349756975,1737414646590,-1393.31,0.00019726,2]
[349756977,1737414646600,-500.0,0.00019726,2]
[349756979,1737414646610,-500.0,0.00019726,2]
[349756981,1737414646619,-500.0,0.00019726,2]
[349756982,1737414646628,-500.0,0.00019726,2]
[349756985,1737414646638,-500.0,0.00019726,2]
[349756986,1737414646647,-500.0,0.00019726,2]
[349756989,1737414646656,-500.0,0.00019726,2]
[349756990,1737414646666,-500.0,0.00019726,2]
[349756992,1737414646675,-500.0,0.00019726,2]
[349756994,1737414646684,-1529.01,0.00019726,2]
[349756996,1737414646693,-500.0,0.00019726,2]
[349756998,1737414646702,-500.0,0.00019726,2]
[349757000,1737414646711,-500.0,0.00019726,2]
[349757002,1737414646720,-500.0,0.00019726,2]
[349757004,1737414646730,-832.48,0.00019726,2]
[349757006,1737414646739,-670.79,0.00019726,2]
[349757008,1737414646748,-598.74,0.00019726,2]
[349757010,1737414646757,-1030.25,0.00019726,2]
[349757012,1737414646767,-1530.61,0.00019726,2]
[349757014,1737414646776,-576.89,0.00019726,2]
[349757016,1737414646785,-686.52,0.00019726,2]
[349757018,1737414646794,-500.0,0.00019726,2]
[349757020,1737414646803,-857.02,0.00019726,2]
[349757022,1737414646812,-500.0,0.00019726,2]
[349757024,1737414646822,-500.0,0.00019726,2]
[349757026,1737414646831,-632.97,0.00019726,2]
[349757028,1737414646840,-500.0,0.00019726,2]
[349757030,1737414646849,-500.0,0.00019726,2]
[349757032,1737414646859,-1665.63,0.00019726,2]
[349757034,1737414646869,-744.2,0.00019726,2]
[349757036,1737414646878,-750.3,0.00019726,2]
[349757038,1737414646887,-500.0,0.00019726,2]
[349757040,1737414646896,-1018.98,0.00019726,2]
[349757042,1737414646906,-1603.12,0.00019726,2]
[349757044,1737414646915,-792.37,0.00019726,2]
[349757046,1737414646923,-796.06,0.00019726,2]
[349757048,1737414646933,-500.0,0.00019726,2]
[349757050,1737414646942,-1603.27,0.00019726,2]
[349757052,1737414646952,-1763.88,0.00019726,2]
[349757054,1737414646960,-500.0,0.00019726,2]
[349757056,1737414646969,-500.0,0.00019726,2]
[349757058,1737414646978,-679.29,0.00019726,2]
[349757060,1737414646987,-780.06,0.00019726,2]
[349757062,1737414646996,-500.0,0.00019726,2]
[349757064,1737414647006,-500.0,0.00019726,2]
[349757066,1737414647015,-617.16,0.00019726,2]
[349757068,1737414647024,-2476.04,0.00019726,2]
[349757070,1737414647033,-500.0,0.00019726,2]
[349757072,1737414647042,-1636.24,0.00019726,2]
[349757074,1737414647051,-1187.47,0.00019726,2]
[349757076,1737414647060,-500.0,0.00019726,2]
[349757078,1737414647070,-825.56,0.00019726,2]
[349757080,1737414647079,-2476.64,0.00019726,2]
[349757082,1737414647088,-500.0,0.00019726,2]
[349757083,1737414647097,-1139.4,0.00019726,2]
[349757085,1737414647106,-830.8,0.00019726,2]
[349757087,1737414647115,-1178.79,0.00019726,2]
[349757089,1737414647124,-500.0,0.00019726,2]
[349757091,1737414647134,-2274.58,0.00019726,2]
[349757093,1737414647143,-1876.38,0.00019726,2]
[349757095,1737414647153,-500.0,0.00019726,2]
[349757097,1737414647162,-500.0,0.00019726,2]
[349757099,1737414647171,-891.99,0.00019726,2]
[349757101,1737414647180,-500.0,0.00019726,2]
[349757103,1737414647190,-2072.24,0.00019726,2]
[349757105,1737414647199,-860.47,0.00019726,2]
[349757107,1737414647208,-1019.64,0.00019726,2]
[349757109,1737414647218,-1380.18,0.00019726,2]
[349757111,1737414647227,-500.0,0.00019726,2]
[349757113,1737414647236,-500.0,0.00019726,2]
[349757115,1737414647245,-500.0,0.00019726,2]
[349757117,1737414647254,-569.93,0.00019726,2]
[349757119,1737414647263,-835.44,0.00019726,2]
[349757121,1737414647272,-500.0,0.00019726,2]
[349757123,1737414647281,-1403.83,0.00019726,2]
[349757125,1737414647290,-890.53,0.00019726,2]
[349757127,1737414647299,-509.99,0.00019726,2]
[349757129,1737414647308,-500.0,0.00019726,2]
[349757131,1737414647317,-2907.81,0.00019726,2]
[349757133,1737414647326,-500.0,0.00019726,2]
[349757135,1737414647335,-998.81,0.00019726,2]
[349757137,1737414647344,-1097.25,0.00019726,2]
[349757139,1737414647353,-612.32,0.00019726,2]
[349757141,1737414647362,-500.0,0.00019726,2]
[349757143,1737414647372,-500.0,0.00019726,2]
[349757145,1737414647381,-599.08,0.00019726,2]
[349757147,1737414647390,-2063.22,0.00019726,2]
[349757149,1737414647399,-1287.56,0.00019726,2]
[349757151,1737414647408,-1714.26,0.00019726,2]
[349757152,1737414647417,-500.0,0.00019726,2]
[349757153,1737414647426,-500.0,0.00019726,2]
[349757154,1737414647435,-624.59,0.00019726,2]
[349757155,1737414647444,-500.0,0.00019726,2]
[349757156,1737414647453,-500.0,0.00019726,2]
[349757157,1737414647462,-500.0,0.00019726,2]
[349757158,1737414647470,-1603.15,0.00019726,2]
[349757159,1737414647479,-500.0,0.00019726,2]
[349757160,1737414647488,-500.0,0.00019726,2]
[349757161,1737414647497,-500.0,0.00019726,2]
[349757162,1737414647506,-500.0,0.00019726,2]
[349757163,1737414647515,-1837.67,0.00019726,2]
[349757164,1737414647528,-500.0,0.00019726,2]
[349757165,1737414647537,-500.0,0.00019726,2]
[349757166,1737414647547,-624.0,0.00019726,2]
[349757168,1737414647556,-500.0,0.00019726,2]
[349757170,1737414647565,-600.72,0.00019726,2]
[349757172,1737414647575,-1545.64,0.00019726,2]
[349757174,1737414647584,-807.86,0.00019726,2]
[349757176,1737414647593,-500.0,0.00019726,2]
[349757178,1737414647604,-500.0,0.00019726,2]
[349757180,1737414647614,-500.0,0.00019726,2]
[349757182,1737414647623,-500.0,0.00019726,2]
[349757184,1737414647632,-500.0,0.00019726,2]
[349757186,1737414647642,-517.43,0.00019726,2]
[349757188,1737414647651,-500.0,0.00019726,2]
[349757190,1737414647660,-500.0,0.00019726,2]
[349757192,1737414647669,-500.0,0.00019726,2]
[349757194,1737414647679,-1290.23,0.00019726,2]
[349757196,1737414647688,-500.0,0.00019726,2]
[349757198,1737414647697,-1839.16,0.00019726,2]
[349757200,1737414647706,-500.0,0.00019726,2]
[349757202,1737414647715,-1177.1,0.00019726,2]
[349757204,1737414647725,-1103.41,0.00019726,2]
[349757206,1737414647734,-500.0,0.00019726,2]
[349757208,1737414647743,-500.0,0.00019726,2]
[349757210,1737414647752,-196.81984924,0.000199,2]
[349757212,1737414647761,-3024.33569886,0.000199,2]
[349757214,1737414647770,-300.0,0.00019913,2]
[349757216,1737414647779,-9172.44796977,0.00019918,2]
[349757218,1737414647788,-500.0,0.00019999,2]
[349757219,1737414647797,-1478.72,0.00019999,2]
[349757221,1737414647807,-506.92,0.00019999,2]
[349757223,1737414647816,-500.0,0.00019999,2]
[349757225,1737414647826,-500.0,0.00019999,2]
[349757227,1737414647835,-500.0,0.00019999,2]
[349757229,1737414647844,-646.84,0.00019999,2]
[349757231,1737414647853,-570.17,0.00019999,2]
[349757233,1737414647862,-500.0,0.00019999,2]
[349757235,1737414647871,-976.51,0.00019999,2]
[349757237,1737414647880,-698.99,0.00019999,2]
[349757240,1737414647890,-1663.5,0.00019999,2]
[349757241,1737414647899,-551.19,0.00019999,2]
[349757243,1737414647908,-3269.84,0.00019999,2]
[349757245,1737414647917,-518.89,0.00019999,2]
[349757247,1737414647926,-552.72,0.00019999,2]
[349757249,1737414647935,-1752.0,0.00019999,2]
[349757251,1737414647945,-500.0,0.00019999,2]
[349757253,1737414647954,-565.08,0.00019999,2]
[349757255,1737414647963,-872.02,0.00019999,2]
[349757257,1737414647971,-1444.7,0.00019999,2]
[349757259,1737414647980,-500.0,0.00019999,2]
[349757261,1737414647989,-1000.0,0.00019999,2]
[349757263,1737414647999,-1042.81,0.00019999,2]
[349757265,1737414648008,-500.0,0.00019999,2]
[349757267,1737414648017,-767432.0,0.0002,2]
[349757269,1737414648026,-500.0,0.0002,2]
[349757271,1737414648036,-500.0,0.0002,2]
[349757273,1737414648046,-500.0,0.0002,2]
[349757275,1737414648056,-500.0,0.0002,2]
[349757277,1737414648065,-604.21,0.0002,2]
[349757279,1737414648075,-500.0,0.0002,2]
[349757281,1737414648084,-500.0,0.0002,2]
[349757283,1737414648093,-189.87526503,0.0002,2]
[349757285,1737414648102,-500.0,0.0002,2]
[349757287,1737414648111,-500.0,0.0002,2]
[349757289,1737414648121,-500.0,0.0002,2]
[349757291,1737414648130,-500.0,0.0002,2]
[349757293,1737414648141,-500.0,0.0002,2]
[349757295,1737414648151,-500.0,0.0002,2]
[349757297,1737414648160,-500.0,0.0002,2]
[349757299,1737414648169,-500.0,0.0002,2]
[349757301,1737414648178,-500.0,0.0002,2]
[349757303,1737414648187,-500.0,0.0002,2]
[349757305,1737414648196,-500.0,0.0002,2]
[349757306,1737414648205,-500.0,0.0002,2]
[349757308,1737414648214,-500.0,0.0002,2]
[349757310,1737414648223,-500.0,0.0002,2]
[349757312,1737414648232,-465.6306354,0.0002,2]
[349757314,1737414648241,-500.0,0.0002,2]
[349757316,1737414648250,-885.11,0.0002,2]
[349757318,1737414648259,-500.0,0.0002,2]
[349757320,1737414648268,-500.0,0.0002,2]
[349757322,1737414648278,-500.0,0.0002,2]
[349757324,1737414648287,-500.0,0.0002,2]
[349757326,1737414648296,-500.0,0.0002,2]
[349757328,1737414648305,-500.0,0.0002,2]
[349757330,1737414648314,-500.0,0.0002,2]
[349757332,1737414648323,-500.0,0.0002,2]
[349757334,1737414648332,-407.27023133,0.0002,2]
[349757336,1737414648341,-500.0,0.0002,2]
[349757338,1737414648351,-500.0,0.0002,2]
[349757340,1737414648360,-500.0,0.0002,2]
[349757342,1737414648369,-500.0,0.0002,2]
[349757344,1737414648378,-500.0,0.0002,2]
[349757346,1737414648388,-500.0,0.0002,2]
[349757348,1737414648397,-500.0,0.0002,2]
[349757350,1737414648407,-500.0,0.0002,2]
[349757352,1737414648417,-500.0,0.0002,2]
[349757354,1737414648426,-500.0,0.0002,2]
[349757356,1737414648435,-565.61,0.0002,2]
[349757358,1737414648444,-500.0,0.0002,2]
[349757373,1737414648583,-500.0,0.0002,2]
[349757375,1737414648593,-500.0,0.0002,2]
[349757377,1737414648603,-500.0,0.0002,2]
[349757379,1737414648613,-255.789155,0.0002,2]
[349757381,1737414648623,-500.0,0.0002,2]
[349757383,1737414648632,-500.0,0.0002,2]
[349757385,1737414648642,-500.0,0.0002,2]
[349757387,1737414648652,-574.2,0.0002,2]
[349757389,1737414648662,-500.0,0.0002,2]
[349757391,1737414648672,-500.0,0.0002,2]
[349757393,1737414648681,-334.392464,0.0002,2]
[349757395,1737414648691,-500.0,0.0002,2]
[349757397,1737414648701,-500.0,0.0002,2]
[349757399,1737414648711,-500.0,0.0002,2]
[349757401,1737414648721,-500.0,0.0002,2]
[349757403,1737414648730,-500.0,0.0002,2]
[349757405,1737414648739,-500.0,0.0002,2]
[349757407,1737414648749,-500.0,0.0002,2]
[349757409,1737414648759,-500.0,0.0002,2]
[349757411,1737414648768,-500.0,0.0002,2]
[349757413,1737414648777,-500.0,0.0002,2]
[349757415,1737414648787,-500.0,0.0002,2]
[349757417,1737414648797,-500.0,0.0002,2]
[349757419,1737414648806,-500.0,0.0002,2]
[349757421,1737414648815,-165.80929104,0.0002,2]
[349757423,1737414648825,-500.0,0.0002,2]
[349757425,1737414648834,-500.0,0.0002,2]
[349757427,1737414648842,-500.0,0.0002,2]
[349757429,1737414648852,-500.0,0.0002,2]
[349757431,1737414648861,-500.0,0.0002,2]
[349757433,1737414648870,-500.0,0.0002,2]
[349757435,1737414648879,-500.0,0.0002,2]
[349757436,1737414648889,-500.0,0.0002,2]
[349757438,1737414648899,-500.0,0.0002,2]
[349757441,1737414648908,-500.0,0.0002,2]
[349757442,1737414648917,-500.0,0.0002,2]
[349757444,1737414648927,-500.0,0.0002,2]
[349757447,1737414648936,-500.0,0.0002,2]
[349757448,1737414648946,-500.0,0.0002,2]
[349757450,1737414648955,-500.0,0.0002,2]
[349757452,1737414648965,-500.0,0.0002,2]
[349757454,1737414648974,-500.0,0.0002,2]
[349757456,1737414648983,-500.0,0.0002,2]
[349757458,1737414648993,-500.0,0.0002,2]
[349757460,1737414649003,-500.0,0.0002,2]
[349757462,1737414649012,-500.0,0.0002,2]
[349757464,1737414649021,-500.0,0.0002,2]
[349757467,1737414649034,-500.0,0.0002,2]
[349757468,1737414649043,-500.0,0.0002,2]
[349757470,1737414649052,-500.0,0.0002,2]
[349757472,1737414649061,-500.0,0.0002,2]
[349757474,1737414649071,-500.96,0.0002,2]
[349757476,1737414649079,-500.0,0.0002,2]
[349757478,1737414649088,-500.0,0.0002,2]
[349757480,1737414649098,-500.0,0.0002,2]
[349757482,1737414649107,-500.0,0.0002,2]
[349757484,1737414649116,-500.0,0.0002,2]
[349757486,1737414649125,-500.0,0.0002,2]
[349757488,1737414649134,-500.0,0.0002,2]
[349757490,1737414649144,-467.27700577,0.0002,2]
[349757492,1737414649153,-500.0,0.0002,2]
[349757494,1737414649163,-500.0,0.0002,2]
[349757496,1737414649172,-500.0,0.0002,2]
[349757498,1737414649181,-497.4088985,0.0002,2]
[349757500,1737414649190,-500.0,0.0002,2]
[349757502,1737414649199,-500.0,0.0002,2]
[349757504,1737414649208,-500.0,0.0002,2]
[349757506,1737414649218,-500.0,0.0002,2]
[349757508,1737414649227,-251.18375063,0.0002,2]
[349757510,1737414649237,-519.52,0.0002,2]
[349757512,1737414649246,-500.0,0.0002,2]
[349757514,1737414649256,-500.0,0.0002,2]
[349757516,1737414649266,-500.0,0.0002,2]
[349757518,1737414649275,-500.0,0.0002,2]
[349757520,1737414649285,-500.0,0.0002,2]
[349757522,1737414649294,-500.0,0.0002,2]
[349757524,1737414649303,-500.0,0.0002,2]
[349757526,1737414649313,-577.54818474,0.0002,2]
[349757528,1737414649324,-500.0,0.0002,2]
[349757530,1737414649333,-500.0,0.0002,2]
[349757532,1737414649342,-500.0,0.0002,2]
[349757534,1737414649352,-1536.87,0.0002,2]
[349757536,1737414649362,-500.0,0.0002,2]
[349757538,1737414649371,-500.0,0.0002,2]
[349757540,1737414649381,-500.0,0.0002,2]
[349757542,1737414649391,-500.0,0.0002,2]
[349757544,1737414649400,-500.0,0.0002,2]
[349757546,1737414649410,-1393.31,0.0002,2]
[349757548,1737414649419,-534.69209211,0.0002,2]
[349757550,1737414649428,-500.0,0.0002,2]
[349757552,1737414649437,-500.0,0.0002,2]
[349757554,1737414649446,-500.0,0.0002,2]
[349757556,1737414649456,-500.0,0.0002,2]
[349757558,1737414649465,-500.0,0.0002,2]
[349757560,1737414649474,-500.0,0.0002,2]
[349757562,1737414649483,-500.0,0.0002,2]
[349757564,1737414649493,-500.0,0.0002,2]
[349757566,1737414649502,-1529.01,0.0002,2]
[349757568,1737414649511,-500.0,0.0002,2]
[349757570,1737414649525,-500.0,0.0002,2]
[349757572,1737414649534,-500.0,0.0002,2]
[349757574,1737414649543,-832.48,0.0002,2]
[349757576,1737414649552,-670.79,0.0002,2]
[349757578,1737414649562,-598.74,0.0002,2]
[349757580,1737414649571,-1030.25,0.0002,2]
[349757582,1737414649581,-1530.61,0.0002,2]
[349757584,1737414649590,-576.89,0.0002,2]
[349757586,1737414649601,-686.52,0.0002,2]
[349757588,1737414649611,-500.0,0.0002,2]
[349757590,1737414649620,-857.02,0.0002,2]
[349757592,1737414649630,-500.0,0.0002,2]
[349757594,1737414649638,-500.0,0.0002,2]
[349757596,1737414649647,-632.97,0.0002,2]
[349757598,1737414649657,-500.0,0.0002,2]
[349757600,1737414649666,-500.0,0.0002,2]
[349757602,1737414649674,-1665.63,0.0002,2]
[349757604,1737414649683,-744.2,0.0002,2]
[349757606,1737414649693,-750.3,0.0002,2]
[349757608,1737414649702,-500.0,0.0002,2]
[349757610,1737414649711,-1018.98,0.0002,2]
[349757611,1737414649719,-1603.12,0.0002,2]
[349757612,1737414649728,-792.37,0.0002,2]
[349757613,1737414649737,-796.06,0.0002,2]
[349757614,1737414649746,-500.0,0.0002,2]
[349757615,1737414649755,-1603.27,0.0002,2]
[349757616,1737414649764,-1763.88,0.0002,2]
[349757617,1737414649774,-500.0,0.0002,2]
[349757618,1737414649783,-500.0,0.0002,2]
[349757619,1737414649791,-679.29,0.0002,2]
[349757620,1737414649800,-780.06,0.0002,2]
[349757621,1737414649809,-500.0,0.0002,2]
[349757622,1737414649818,-500.0,0.0002,2]
[349757623,1737414649827,-617.16,0.0002,2]
[349757624,1737414649836,-2476.04,0.0002,2]
[349757626,1737414649845,-500.0,0.0002,2]
[349757628,1737414649855,-1636.24,0.0002,2]
[349757630,1737414649865,-1187.47,0.0002,2]
[349757632,1737414649875,-500.0,0.0002,2]
[349757634,1737414649884,-825.56,0.0002,2]
[349757636,1737414649893,-2476.64,0.0002,2]
[349757638,1737414649902,-500.0,0.0002,2]
[349757640,1737414649911,-1139.4,0.0002,2]
[349757642,1737414649920,-830.8,0.0002,2]
[349757644,1737414649929,-1178.79,0.0002,2]
[349757646,1737414649939,-500.0,0.0002,2]
[349757648,1737414649948,-2274.58,0.0002,2]
[349757650,1737414649957,-1876.38,0.0002,2]
[349757652,1737414649967,-500.0,0.0002,2]
[349757654,1737414649976,-500.0,0.0002,2]
[349757656,1737414649985,-891.99,0.0002,2]
[349757658,1737414649995,-500.0,0.0002,2]
[349757660,1737414650005,-860.47,0.0002,2]
[349757662,1737414650014,-1019.64,0.0002,2]
[349757664,1737414650023,-2072.24,0.0002,2]
[349757666,1737414650032,-1380.18,0.0002,2]
[349757668,1737414650041,-500.0,0.0002,2]
[349757670,1737414650050,-500.0,0.0002,2]
[349757672,1737414650059,-500.0,0.0002,2]
[349757674,1737414650068,-569.93,0.0002,2]
[349757676,1737414650077,-835.44,0.0002,2]
[349757678,1737414650086,-418.74122655,0.0002,2]
[349757680,1737414650094,-1403.83,0.0002,2]
[349757682,1737414650103,-890.53,0.0002,2]
[349757684,1737414650113,-509.99,0.0002,2]
[349757685,1737414650125,-212.92632302,0.0002,2]
[349757687,1737414650135,-2907.81,0.0002,2]
[349757689,1737414650144,-500.0,0.0002,2]
[349757691,1737414650153,-998.81,0.0002,2]
[349757693,1737414650162,-1097.25,0.0002,2]
[349757695,1737414650171,-612.32,0.0002,2]
[349757697,1737414650181,-500.0,0.0002,2]
[349757699,1737414650190,-500.0,0.0002,2]
[349757701,1737414650199,-599.08,0.0002,2]
[349757703,1737414650208,-2063.22,0.0002,2]
[349757705,1737414650217,-1287.56,0.0002,2]
[349757707,1737414650226,-1714.26,0.0002,2]
[349757709,1737414650235,-500.0,0.0002,2]
[349757711,1737414650245,-500.0,0.0002,2]
[349757713,1737414650254,-624.59,0.0002,2]
[349757715,1737414650263,-500.0,0.0002,2]
[349757717,1737414650272,-1603.15,0.0002,2]
[349757719,1737414650281,-500.0,0.0002,2]
[349757721,1737414650290,-1119.77,0.0002,2]
[349757724,1737414650304,-500.0,0.0002,2]
[349757726,1737414650313,-500.0,0.0002,2]
[349757728,1737414650322,-1837.67,0.0002,2]
[349757730,1737414650331,-500.0,0.0002,2]
[349757732,1737414650340,-500.0,0.0002,2]
[349757734,1737414650349,-624.0,0.0002,2]
[349757736,1737414650358,-500.0,0.0002,2]
[349757738,1737414650370,-600.72,0.0002,2]
[349757740,1737414650379,-1545.64,0.0002,2]
[349757742,1737414650388,-807.86,0.0002,2]
[349757744,1737414650398,-500.0,0.0002,2]
[349757746,1737414650407,-500.0,0.0002,2]
[349757748,1737414650416,-500.0,0.0002,2]